Cogmind - Beta 13 @@@ ROGUE MODE // 2024.03.21 @ 23:50:14 Player: darki Result: Destroyed by JQ-Q4X(R) with Subdweller Beam Cannon Performance ------------- Evolutions (0) 0 Regions Visited (3) 600 Robots Destroyed (16) 80 Value Destroyed (416) 416 Prototype IDs (0) 0 Alien Tech Used (0) 0 Bonus (0) 0 TOTAL SCORE: 1096 Bonus ------- None Cogmind --------- Core Integrity 0/250 Matter 299/300 Energy 97/100 System Corruption 0% Temperature Cool (15) Movement Treading (160) Location -10/Subcaves Parts ------- > --- POWER (1) -------- (None) > --- PROPULSION (2) --- Light Treads > --- UTILITY (2) ------ Improved Heat Sink Medium Storage Unit > --- WEAPON (2) ------- Assault Rifle > --- INVENTORY (10) --- Light Ion Engine Experimental Sensor Array Particle Gun Makeshift Laser Assault Rifle Assault Rifle Assault Rifle Assault Rifle Assault Rifle Peak State ------------ > --- POWER ------------ Subdweller Power Source > --- PROPULSION ------- Light Treads Light Treads > --- UTILITY ---------- Improved Heat Sink Medium Storage Unit > --- WEAPON ----------- Medium Laser Assault Rifle > --- INVENTORY -------- Light Ion Engine Light Treads Experimental Sensor Array Particle Gun Makeshift Laser Assault Rifle Assault Rifle Assault Rifle Assault Rifle Assault Rifle [Rating: 12] Favorites ----------- Power Ion Engine Engine Ion Engine Propulsion Light Treads Treads Light Treads Leg Aluminum Leg Utility Medium Storage Unit Device Improved Heat Sink Storage Medium Storage Unit Weapon Assault Rifle Energy Gun Medium Laser Energy Cannon Beam Cannon Ballistic Gun Assault Rifle Build | -11 -10 -10 -10 ------- Run | Yrd Mat Min Sub Slots Evolved . | . . . . Power . | . . . . Propulsion . | . . . . Utility . | . . . . Weapon . | . . . . Parts Attached 12 | . 1 7 4 Power 1 | . . . 1 Engine 1 | . . . 1 Core . | . . . . Reactor . | . . . . Propulsion 3 | . . 2 1 Treads 3 | . . 2 1 Leg . | . . . . Wheel . | . . . . Hover . | . . . . Flight . | . . . . Utility 2 | . 1 1 . Device 1 | . . 1 . Storage 1 | . 1 . . Processor . | . . . . Hackware . | . . . . Protection . | . . . . Artifact . | . . . . Weapon 6 | . . 4 2 Energy Gun 3 | . . 2 1 Energy Cannon 1 | . . 1 . Ballistic Gun 2 | . . 1 1 Ballistic Cannon . | . . . . Launcher . | . . . . Special Weapon . | . . . . Impact Weapon . | . . . . Slashing Weapon . | . . . . Piercing Weapon . | . . . . Special Melee Weapon . | . . . . Unidentified Prototypes . | . . . . Parts Lost 5 | . . 2 3 Power . | . . . . Propulsion 3 | . . 1 2 Utility . | . . . . Weapon 2 | . . 1 1 Highest Loss Streak 1 | . . 1 1 To Critical Strikes 1 | . . . 1 Average Slot Usage (%) 94 | . 99 95 88 Engine 12 | . 14 14 10 Treads 15 | . . 20 22 Leg 10 | . 28 7 . Device 9 | . . 11 14 Storage 18 | . 27 16 14 Energy Gun 4 | . . 2 11 Energy Cannon 1 | . . 4 . Ballistic Gun 18 | . 28 16 14 Naked Turns . | . . . . Heaviest Build 24 | 14 24 24 20 Greatest Support 40 | 20 20 40 40 Greatest Overweight (x) 1 | . 1 1 . Average Overweight (x) . | . . . . Largest Inventory Capacity 10 | . 10 10 10 Average Capacity 9 | . 9 10 10 Most Carried 10 | . 10 10 10 Average Carried 9 | . 8 9 9 Final Capacity 10 | 8 10 10 10 Final Carried 10 | 6 10 10 9 Class Distribution -------------------- 100% | Mutant Dominant Class ---------------- Mutant | -10/Materials Mutant | -10/Mines Mutant | -10/Subcaves Resources | -11 -10 -10 -10 ----------- Run | Yrd Mat Min Sub Matter Collected 463 | 200 62 142 59 Remotely . | . . . . Salvage Created 643 | . 130 259 254 Parts 29 | . 3 17 9 Haulers Intercepted 1 | . 1 . . Recyclers Shooed . | . . . . Parts Field Recycled . | . . . . Retrieved Matter . | . . . . Parts Self-Destructed 15 | . . . 15 Prevented . | . . . . Kills | -11 -10 -10 -10 ------- Run | Yrd Mat Min Sub Combat Hostiles Destroyed 14 | . 2 7 5 Guns 14 | . 2 7 5 Classes Destroyed 10 | . 2 5 3 Worker 1 | . . 1 . Hauler 1 | . 1 . . Recycler 1 | . . 1 . Swarmer 4 | . . 3 1 Grunt 4 | . 2 2 . Sentry 1 | . . . 1 Demolisher 1 | . . 1 . Cobbler 1 | . . . 1 Subdweller 3 | . . . 3 Assembled 1 | . . 1 . Best Kill Streak 3 | . 1 3 2 Combat Bots Only 2 | . 1 2 2 Max Kills in Single Turn 2 | . 1 2 1 Gunslinging 1 | . . 1 . Exploded . | . . . . Melee . | . . . . Uniques/NPCs Destroyed . | . . . . Combat | -11 -10 -10 -10 -------- Run | Yrd Mat Min Sub Hostile Shots Fired 93 | . 18 32 43 Missed 29 | . 5 8 16 Damage Taken 1253 | . 179 554 520 Core 268 | . 12 139 117 Absorbed by Shields . | . . . . Core Remaining (%) 100 | 100 . . . Volleys Fired 73 | . 9 18 46 Largest 2 | . 2 2 2 Hottest 85 | . 40 85 70 Shots Fired 102 | . 18 36 48 Gun 96 | . 18 30 48 Cannon 6 | . . 6 . Launcher . | . . . . Special . | . . . . Kinetic 54 | . 18 26 10 Thermal 48 | . . 10 38 Explosive . | . . . . Electromagnetic . | . . . . Robot Hit Streak 35 | . 8 9 35 Robot Miss Streak 1 | . 1 1 1 Penetration Max . | . . . . Secondary Targets 1 | . . 1 . Max Gunslinging Chain 1 | . . 1 . Shots Hit Robots 84 | . 15 27 42 Core Hits 33 | . 6 15 12 Critical Kills 1 | . 1 . . Critical Parts Destroyed . | . . . . Critical Strikes 3 | . 1 . 2 Burn 2 | . . . 2 Destroy 1 | . 1 . . Melee Attacks . | . . . . Impact . | . . . . Slashing . | . . . . Piercing . | . . . . Sneak Attacks . | . . . . Combat Hostiles . | . . . . Follow-up Attacks . | . . . . Damage Inflicted 962 | . 175 369 418 Guns 873 | . 173 282 418 Cannons 87 | . . 87 . Explosions . | . . . . Melee . | . . . . Ramming 2 | . 2 . . Kinetic 473 | . 173 222 78 Thermal 487 | . . 147 340 Explosive . | . . . . Electromagnetic . | . . . . Impact . | . . . . Slashing . | . . . . Piercing . | . . . . Highest Corruption . | . . . . Average Corruption . | . . . . Corruption Purged . | . . . . Corruption Blocked . | . . . . Overload Shots . | . . . . Overflow Damage . | . . . . Projectiles . | . . . . Explosions . | . . . . Melee . | . . . . Knockbacks . | . . . . Impact . | . . . . Kinetic . | . . . . Secondary . | . . . . Self-Inflicted Damage . | . . . . Shots . | . . . . Rammed . | . . . . Targets Rammed 1 | . 1 . . Kicked 1 | . 1 . . Crushed . | . . . . Highest Temperature 2 | . . 2 . Average Temperature 2 | . . 2 . Received Heat Transfer 267 | . 78 51 138 Siege Activations . | . . . . Robots Corrupted . | . . . . Combat Hostiles . | . . . . Parts Fried . | . . . . Impact Corruptions . | . . . . Robots Melted . | . . . . Combat Hostiles . | . . . . Parts Melted 1 | . . . 1 Heat Transferred 1480 | . . 333 1147 Parts Sabotaged . | . . . . Parts Stolen . | . . . . Parts Stripped . | . . . . Power Chain Reactions . | . . . . Alert | -11 -10 -10 -10 ------- Run | Yrd Mat Min Sub Peak Influence 168 | . 35 168 . Initial 13 | . . 13 . Average 51 | . 5 79 . Maximum Alert Level . | . . . . Low Security (%) 100 | . 100 100 . Level 1 . | . . . . Level 2 . | . . . . Level 3 . | . . . . Level 4 . | . . . . Level 5 . | . . . . High Security . | . . . . Max Security . | . . . . Squads Dispatched 1 | . 1 . . Investigation 1 | . 1 . . Extermination . | . . . . Reinforcement . | . . . . Assault . | . . . . Garrison . | . . . . Intercept . | . . . . Searches Triggered . | . . . . Construction Impeded . | . . . . Haulers Reinforced . | . . . . Active Scanning Responses . | . . . . Cargo Convoy Interrupts . | . . . . Stealth | -11 -10 -10 -10 --------- Run | Yrd Mat Min Sub Distress Signals 1 | . . 1 . Communications Jammed . | . . . . Distress Signals . | . . . . Times Spotted 24 | . 6 11 7 Peak Tracking Total 3 | . 3 3 2 Tactical Retreats 4 | . 1 3 . Traps | -11 -10 -10 -10 ------- Run | Yrd Mat Min Sub Traps Triggered 2 | . 2 . . Indirectly . | . . . . Trap Hack Attempts . | . . . . Triggered . | . . . . Disarmed . | . . . . Reprogrammed . | . . . . Reused 1 | . . . 1 Traps Extracted . | . . . . Installed 1 | . . . 1 Triggered . | . . . . Most Traps Carried 1 | . . . 1 Machines | -11 -10 -10 -10 ---------- Run | Yrd Mat Min Sub Machines Disabled . | . . . . Max in Single Turn . | . . . . Machines Repaired . | . . . . Machines Dismantled . | . . . . Machines Sabotaged . | . . . . Overloaded Fab Kills . | . . . . Hacking | -11 -10 -10 -10 --------- Run | Yrd Mat Min Sub Machines Accessed . | . . . . Terminals . | . . . . Fabricators . | . . . . Repair Stations . | . . . . Recycling Units . | . . . . Scanalyzers . | . . . . Garrison Access . | . . . . Total Hacks . | . . . . Successful . | . . . . Failed . | . . . . Catastrophic . | . . . . Database Lockouts . | . . . . Manual . | . . . . Terminals . | . . . . Fabricators . | . . . . Repair Stations . | . . . . Recycling Units . | . . . . Scanalyzers . | . . . . Garrison Access . | . . . . Terminal Hacks . | . . . . Fabricator Hacks . | . . . . Repair Station Hacks . | . . . . Recycling Unit Hacks . | . . . . Scanalyzer . | . . . . Garrison Access Hacks . | . . . . Unauthorized Hacks . | . . . . Terminals . | . . . . Fabricators . | . . . . Repair Stations . | . . . . Recycling Units . | . . . . Scanalyzers . | . . . . Garrison Access . | . . . . Data Cores Recovered . | . . . . Used . | . . . . Hacking Detections . | . . . . Full Trace Events . | . . . . Feedback Events . | . . . . Feedback Blocked . | . . . . Robot Schematics Acquired . | . . . . Robots Built . | . . . . Authchips . | . . . . Time . | . . . . Total Robot Build Rating . | . . . . Part Schematics Acquired . | . . . . Parts Built . | . . . . Authchips . | . . . . Time . | . . . . Total Part Build Rating . | . . . . Parts Repaired . | . . . . Time . | . . . . Parts Recycled . | . . . . Recycled Matter . | . . . . Retrieved Matter . | . . . . Retrieved Components . | . . . . Parts Scanalyzed . | . . . . Part Schematics Acquired . | . . . . Parts Damaged . | . . . . Bothacking | -11 -10 -10 -10 ------------ Run | Yrd Mat Min Sub Used RIF Installer . | . . . . Robots Hacked . | . . . . Non-combat . | . . . . Combat . | . . . . Robot Hacks Applied . | . . . . Relay Couplers Released . | . . . . Fabnet Peak Effective % . | . . . . Robots Rewired . | . . . . Allies Hacked . | . . . . Hacks Repelled . | . . . . Allies | -11 -10 -10 -10 -------- Run | Yrd Mat Min Sub Total Allies . | . . . . Largest Group . | . . . . Highest-Rated Group . | . . . . Highest-Rated Ally . | . . . . Total Orders . | . . . . Ally Attacks . | . . . . Total Damage . | . . . . Kills . | . . . . Allies Corrupted . | . . . . Allies Melted . | . . . . Intel | -11 -10 -10 -10 ------- Run | Yrd Mat Min Sub Robot Analysis Total . | . . . . Derelict Logs Recovered . | . . . . Drone Launches . | . . . . Drone Recoveries . | . . . . Exploration | -11 -10 -10 -10 ------------- Run | Yrd Mat Min Sub Turns Passed 1832 | . 470 760 602 Spaces Moved 840 | 1 224 333 282 Core . | . . . . Treads 533 | . . 251 282 Legs 307 | 1 224 82 . Wheels . | . . . . Hover . | . . . . Flight . | . . . . Fastest Speed 120 | 120 120 120 160 Average Speed 169 | 120 185 166 160 Slowest Speed 190 | 120 190 190 160 Overloaded Moves . | . . . . Propulsion Burnouts . | . . . . Robots Hopped . | . . . . Cave-ins Triggered . | . . . . Exploration Rate (%) 34 | 3 52 69 12 Regions Visited 3 Branch Regions 2 Pre-discovered Areas . | . . . . Known Exits Taken . | . . . . Unknown Exits Taken 3 | 1 1 1 . Scrap Searched 3 | . . 1 2 Spaces Dug . | . . . . Terrain Destroyed . | . . . . Melee . | . . . . Projectile . | . . . . AOE . | . . . . Terrain Rammed . | . . . . Walls Destroyed . | . . . . Machines Disabled . | . . . . Actions | -11 -10 -10 -10 --------- Run | Yrd Mat Min Sub Total 1150 | . 261 503 386 Wait 205 | . 19 138 48 Move 837 | . 223 332 282 Hop . | . . . . Pick Up 9 | . 6 1 2 Fast Attach 6 | . 1 5 . Attach 4 | . . 2 2 Detach 2 | . . 2 . Swap 2 | . . . 2 Drop 10 | . 2 5 3 Fire 73 | . 9 18 46 Melee . | . . . . Ram . | . . . . Kick 1 | . 1 . . Crush . | . . . . Escape Stasis . | . . . . Rewire . | . . . . Trap 1 | . . . 1 Miscellaneous . | . . . . Route ------- -11/Scrapyard -10/Materials (discovered 2 exits: [*Mat] / [*Min]) -10/Mines (discovered 2 exits: [*Mat] / [*Sub]) -10/Subcaves (discovered 1 exit: [*Mat]) History --------- Turn | Location | Event 1 | -11/Scrapyard | Discovered new exit (range 0) 1 | -11/Scrapyard | Entered Materials 222 | -10/Materials | Discovered new exit (range 4) 312 | -10/Materials | Build established: Mutant 450 | -10/Materials | Discovered new exit (range 7) 471 | -10/Materials | Entered Mines 655 | -10/Mines | Assembled infested the area 1002 | -10/Mines | Core integrity fell below 50% 1039 | -10/Mines | Found a damaged Exp. Sensor Array with a note attached 1050 | -10/Mines | Found Prototype Device 1123 | -10/Mines | Discovered new exit (range 11) 1225 | -10/Mines | Discovered new exit (range 5) 1231 | -10/Mines | Entered Subcaves 1304 | -10/Subcaves | Discovered new exit (range 9) 1597 | -10/Subcaves | Core integrity fell below 20% 1833 | -10/Subcaves | Destroyed by JQ-Q4X(R) with Subdweller Beam Cannon Last Messages --------------- 01588_ Lgt. Treads destroyed. 01593_ HT-0OV(R) affixes Scrap Shield Fragment to Scrap Shield. 01602_ Sub. Monowheel melted. 01602_ HT-0OV(R) destroyed. 01607_ Acquired 5 matter. 01682_ Sub. Power Source shoots sparks and powers down. 01690_ Dropped Broken Sub. Power Source. 01723_ 9I-6W4(O) cries out in pain. 01723_ 9I-6W4(O) destroyed. 01734_ Acquired Shrapnel Trap. 01810_ DX-CBX(u) tweaks Twisted Machinery. 01812_ Dropped Shrapnel Trap. 01813_ Installed Shrapnel Trap. 01828_ CB-J1Q(R) suffers critical hit (Burn). 01828_ JQ-Q4X(R) triggered Shrapnel Trap. 01828_ An expanding cloud of shrapnel blasts out in all directions. 01833_ Med. Laser destroyed. Map ----- +----------------------------------------------------+ | ?????????????????????????#####?? #??????????????? | | ?????????????????????????# ##""#??????????????? | | ?????????????????????????? """ ##?????????????? | | ???????????????????????????#""" #?????????????? | | ????????????????????????????# "" % #?????????????? | | ????????????????####????????## "" #?????????????? | | ???????????????## ######???# %# ##?????????????? | | ???????????????# # ###### #????????????????? | | ???????????????### ## ## ## #????????????????? | | ?????????????????##### #????????????????? | | ?????????????????????#"""" #????????????????? | | ???????????????????### "###"###????????????????? | | ??????????????????## # ##?###??????????????????? | | ??????????????????#%%## #???????????????????????? | | ??????????????##### =## ###?????????????????????? | | ?????????????## ##????????????????????? | | ????????????## % ##?????????###???##### | | ????????# ## ########?## ##### | | ????????# ## ### | | ???????# # | | ???????# ## [# | | ??????? ## ## ## #### | | ???????# ### #### #??## | | ???????# RR #?# #??###???# | | ???????? # #;; ## ##? #???????? | | ???????? ## ###?#@ #######?## ##???????? | | ?????????####?# ????##;##????????####????????? | | ??????????????# ??????##?????????????????????? | | ??????????????######?????????????????????????????? | | ?????????????????????????????????????????????????? | | ?????????????????????????????????????????????????? | | ?????????????????????????????????????????????????? | | ?????????????????????????????????????????????????? | | ?????????????????????????????????????????????????? | | ?????????????????????????????????????????????????? | | ?????????????????????????????????????????????????? | | ?????????????????????????????????????????????????? | | ?????????????????????????????????????????????????? | | ?????????????????????????????????????????????????? | | ?????????????????????????????????????????????????? | | ?????????????????????????????????????????????????? | | ?????????????????????????????????????????????????? | | | | | | | | | | | | | | | | | +----------------------------------------------------+ Best States ------------- Heat Dissipation 39 Energy Generation 15 Energy Capacity 250 Matter Stores 300 Matter Capacity 300 Sight Range 16 Terrain Scan Density 10 Evasion (%) 55 Recoil Reduction 2 Item Schematics ----------------- None Robot Schematics ------------------ None Fabricated ------------ Nothing Alien Tech Used ----------------- None Achievements -------------- None Challenges ------------ None Game ------ Seed TerrainMatterSpear Manual? 0 Play Time 00:11:16 Cumulative 172.9 hours Start 2024.03.21 @ 23:42:16 End 2024.03.21 @ 23:50:14 Sessions 1 Manual Loads 0 Difficulty Rogue Special Mode None Game No. 184 Rogue 184 Adventurer 0 Explorer 0 Win Type - Total 1 Types 1/0/0/0/0/0/0/0/0 Lore% 56 Gallery% 73 Achievement% 57 Wizard Run 0 Options --------- Layout 1 ASCII 0 Keyboard 0 Movement Numpad Keybinds 0 Fullscreen 1 Font 24/Smallcaps Map View 50x35 Zoom Use 0% Tactical HUD 1 Map Filters NONE Filters NONE Steam 1 RUN: a0d39b0e-d53b-49fc-b535-90be6a9eded1